[Event "Titled Tuesday Blitz July 4 Late 2023"]
[White "Pasti, Aron"]
[Black "Curtis, John"]
[WhiteFideId "785857"]
[BlackFideId "3200256"]
[WhiteElo "2540"]
[BlackElo "2124"]
[Result "0-1"]
[Round "6"]
[TimeControl "180+2"]
[Date "2023.07.04"]
[WhiteClock "0:00:02"]
[BlackClock "0:01:00"]
[Board "124"]

1. e4 {[%clk 0:03:00]}  c5 {[%clk 0:02:56]} 2. d4 {[%clk 0:03:00]}  cxd4 {[%clk 0:02:54]} 3. c3 {[%clk 0:03:01]}  Nf6 {[%clk 0:02:53]} 4. e5 {[%clk 0:03:01]}  Nd5 {[%clk 0:02:53]} 5. cxd4 {[%clk 0:03:02]}  d6 {[%clk 0:02:53]} 6. Nf3 {[%clk 0:03:02]}  Nc6 {[%clk 0:02:51]} 7. Bc4 {[%clk 0:03:01]}  dxe5 {[%clk 0:02:48]} 8. dxe5 {[%clk 0:03:02]}  e6 {[%clk 0:02:49]} 9. O-O {[%clk 0:03:00]}  Be7 {[%clk 0:02:48]} 10. Nc3 {[%clk 0:02:56]}  Nxc3 {[%clk 0:02:47]} 11. Qxd8+ {[%clk 0:02:56]}  Bxd8 {[%clk 0:02:47]} 12. bxc3 {[%clk 0:02:57]}  Ba5 {[%clk 0:02:40]} 13. Bb2 {[%clk 0:02:41]}  O-O {[%clk 0:02:35]} 14. Rac1 {[%clk 0:02:39]}  Rd8 {[%clk 0:02:34]} 15. Ba3 {[%clk 0:02:34]}  Bc7 {[%clk 0:02:33]} 16. Rfe1 {[%clk 0:02:33]}  b6 {[%clk 0:02:31]} 17. Bb5 {[%clk 0:02:24]}  Bb7 {[%clk 0:02:30]} 18. Bxc6 {[%clk 0:02:23]}  Bxc6 {[%clk 0:02:28]} 19. Nd4 {[%clk 0:02:24]}  Ba4 {[%clk 0:02:24]} 20. Kf1 {[%clk 0:02:07]}  Rd5 {[%clk 0:02:22]} 21. Be7 {[%clk 0:02:01]}  Rxe5 {[%clk 0:02:17]} 22. Rxe5 {[%clk 0:01:59]}  Bxe5 {[%clk 0:02:17]} 23. Nf3 {[%clk 0:01:55]}  Bf6 {[%clk 0:02:07]} 24. Bxf6 {[%clk 0:01:55]}  gxf6 {[%clk 0:02:07]} 25. Ke2 {[%clk 0:01:55]}  Rc8 {[%clk 0:02:05]} 26. Kd3 {[%clk 0:01:53]}  Bc6 {[%clk 0:02:04]} 27. Ke3 {[%clk 0:01:48]}  Bxf3 {[%clk 0:02:03]} 28. Kxf3 {[%clk 0:01:49]}  Kf8 {[%clk 0:02:03]} 29. Ke3 {[%clk 0:01:48]}  Rc4 {[%clk 0:02:01]} 30. Kd3 {[%clk 0:01:47]}  b5 {[%clk 0:02:00]} 31. Rb1 {[%clk 0:01:42]}  a6 {[%clk 0:02:00]} 32. Rb3 {[%clk 0:01:41]}  Ra4 {[%clk 0:01:58]} 33. Rb2 {[%clk 0:01:33]}  Rg4 {[%clk 0:01:53]} 34. f3 {[%clk 0:01:28]}  Ra4 {[%clk 0:01:52]} 35. Kc2 {[%clk 0:01:26]}  Ke7 {[%clk 0:01:51]} 36. Kb3 {[%clk 0:01:26]}  h5 {[%clk 0:01:49]} 37. Rd2 {[%clk 0:01:24]}  h4 {[%clk 0:01:42]} 38. Re2 {[%clk 0:00:41]}  f5 {[%clk 0:01:37]} 39. g3 {[%clk 0:00:35]}  hxg3 {[%clk 0:01:37]} 40. hxg3 {[%clk 0:00:36]}  f6 {[%clk 0:01:36]} 41. Rh2 {[%clk 0:00:36]}  f4 {[%clk 0:01:29]} 42. g4 {[%clk 0:00:33]}  e5 {[%clk 0:01:27]} 43. Rh7+ {[%clk 0:00:30]}  Ke6 {[%clk 0:01:27]} 44. Rh6 {[%clk 0:00:28]}  Kf7 {[%clk 0:01:27]} 45. Rh7+ {[%clk 0:00:26]}  Kg6 {[%clk 0:01:27]} 46. Ra7 {[%clk 0:00:23]}  Kg5 {[%clk 0:01:25]} 47. Rh7 {[%clk 0:00:22]}  e4 {[%clk 0:01:23]} 48. Rh5+ {[%clk 0:00:21]}  Kg6 {[%clk 0:01:23]} 49. fxe4 {[%clk 0:00:20]}  Rxe4 {[%clk 0:01:23]} 50. Rf5 {[%clk 0:00:20]}  f3 {[%clk 0:01:19]} 51. Rxf3 {[%clk 0:00:21]}  Rxg4 {[%clk 0:01:19]} 52. Rd3 {[%clk 0:00:21]}  Ra4 {[%clk 0:01:18]} 53. Rd6 {[%clk 0:00:22]}  Kg5 {[%clk 0:01:18]} 54. c4 {[%clk 0:00:21]}  Rxc4 {[%clk 0:01:17]} 55. Rxa6 {[%clk 0:00:21]}  f5 {[%clk 0:01:16]} 56. Rb6 {[%clk 0:00:16]}  Rc5 {[%clk 0:01:14]} 57. Kb4 {[%clk 0:00:15]}  Re5 {[%clk 0:01:14]} 58. Rb8 {[%clk 0:00:12]}  f4 {[%clk 0:01:13]} 59. Rg8+ {[%clk 0:00:12]}  Kf5 {[%clk 0:01:13]} 60. Kc3 {[%clk 0:00:10]}  Ke4 {[%clk 0:01:13]} 61. Kd2 {[%clk 0:00:09]}  Kf3 {[%clk 0:01:12]} 62. Rf8 {[%clk 0:00:09]}  Rd5+ {[%clk 0:01:12]} 63. Ke1 {[%clk 0:00:08]}  Rd4 {[%clk 0:01:10]} 64. Rb8 {[%clk 0:00:07]}  Ra4 {[%clk 0:01:09]} 65. Rxb5 {[%clk 0:00:06]}  Rxa2 {[%clk 0:01:09]} 66. Rb3+ {[%clk 0:00:07]}  Kg2 {[%clk 0:01:09]} 67. Rb8 {[%clk 0:00:07]}  Ra1+ {[%clk 0:01:01]} 68. Ke2 {[%clk 0:00:07]}  f3+ {[%clk 0:01:01]} 69. Ke3 {[%clk 0:00:07]}  Ra3+ {[%clk 0:01:01]} 70. Kd2 {[%clk 0:00:05]}  f2 {[%clk 0:01:00]} 71. Rg8+ {[%clk 0:00:02]}  Rg3 {[%clk 0:01:00]} 0-1


[Site "https://www.chess.com"]

[Event "Titled Tuesday Blitz July 4 Late 2023"]
[White "Dinosaurio_1975"]
[Black "Svicevic, Rastko"]
[BlackFideId "916315"]
[WhiteElo "2539"]
[BlackElo "2355"]
[Result "1-0"]
[Round "6"]
[TimeControl "180+2"]
[Date "2023.07.04"]
[WhiteClock "0:02:32"]
[BlackClock "0:01:37"]
[Board "125"]

1. e4 {[%clk 0:03:00]}  c5 {[%clk 0:02:59]} 2. Nf3 {[%clk 0:03:00]}  d6 {[%clk 0:02:58]} 3. Bb5+ {[%clk 0:03:01]}  Bd7 {[%clk 0:02:57]} 4. Bxd7+ {[%clk 0:03:01]}  Qxd7 {[%clk 0:02:57]} 5. O-O {[%clk 0:03:01]}  Nc6 {[%clk 0:02:39]} 6. Re1 {[%clk 0:03:01]}  e6 {[%clk 0:02:32]} 7. c3 {[%clk 0:03:01]}  d5 {[%clk 0:02:26]} 8. e5 {[%clk 0:03:01]}  Nge7 {[%clk 0:02:16]} 9. d4 {[%clk 0:03:01]}  Nf5 {[%clk 0:02:16]} 10. Na3 {[%clk 0:02:54]}  cxd4 {[%clk 0:02:15]} 11. cxd4 {[%clk 0:02:53]}  Bxa3 {[%clk 0:02:14]} 12. bxa3 {[%clk 0:02:54]}  O-O {[%clk 0:02:12]} 13. g4 {[%clk 0:02:54]}  Nfe7 {[%clk 0:02:09]} 14. Qd3 {[%clk 0:02:44]}  Na5 {[%clk 0:01:52]} 15. h4 {[%clk 0:02:35]}  a6 {[%clk 0:01:39]} 16. Ng5 {[%clk 0:02:33]}  h6 {[%clk 0:01:37]} 17. Qh7# {[%clk 0:02:32]} 1-0


[Site "https://www.chess.com"]

[Event "Titled Tuesday Blitz July 4 Late 2023"]
[White "Saucey, Michel"]
[Black "Buchenau, Frank"]
[WhiteFideId "601845"]
[BlackFideId "4604350"]
[WhiteElo "2280"]
[BlackElo "2423"]
[Result "1-0"]
[Round "6"]
[TimeControl "180+2"]
[Date "2023.07.04"]
[WhiteClock "0:00:02"]
[BlackClock "0:00:00"]
[Board "129"]

1. d4 {[%clk 0:03:00]}  e6 {[%clk 0:02:59]} 2. c4 {[%clk 0:03:00]}  Nf6 {[%clk 0:03:00]} 3. Nf3 {[%clk 0:02:59]}  b6 {[%clk 0:02:59]} 4. g3 {[%clk 0:02:59]}  Bb7 {[%clk 0:03:00]} 5. Bg2 {[%clk 0:02:59]}  Be7 {[%clk 0:03:00]} 6. O-O {[%clk 0:02:59]}  O-O {[%clk 0:03:00]} 7. Re1 {[%clk 0:02:58]}  a5 {[%clk 0:02:56]} 8. d5 {[%clk 0:02:49]}  exd5 {[%clk 0:02:42]} 9. Nh4 {[%clk 0:02:48]}  c6 {[%clk 0:02:28]} 10. cxd5 {[%clk 0:02:44]}  Nxd5 {[%clk 0:02:27]} 11. Nf5 {[%clk 0:02:43]}  Bb4 {[%clk 0:02:22]} 12. Bd2 {[%clk 0:02:41]}  Re8 {[%clk 0:02:14]} 13. e4 {[%clk 0:02:39]}  Ne7 {[%clk 0:02:06]} 14. Bxb4 {[%clk 0:02:23]}  Nxf5 {[%clk 0:02:01]} 15. Ba3 {[%clk 0:02:19]}  Ne7 {[%clk 0:01:55]} 16. Bd6 {[%clk 0:02:17]}  c5 {[%clk 0:01:47]} 17. Nc3 {[%clk 0:02:16]}  Nc8 {[%clk 0:01:31]} 18. Nb5 {[%clk 0:01:53]}  Na6 {[%clk 0:01:02]} 19. e5 {[%clk 0:01:40]}  Bc6 {[%clk 0:00:56]} 20. a4 {[%clk 0:00:48]}  Nxd6 {[%clk 0:00:53]} 21. Nxd6 {[%clk 0:00:47]}  Rf8 {[%clk 0:00:50]} 22. Bxc6 {[%clk 0:00:45]}  dxc6 {[%clk 0:00:50]} 23. Qf3 {[%clk 0:00:42]}  Nb4 {[%clk 0:00:48]} 24. Rad1 {[%clk 0:00:29]}  Nc2 {[%clk 0:00:41]} 25. Re4 {[%clk 0:00:29]}  Nd4 {[%clk 0:00:40]} 26. Qe3 {[%clk 0:00:21]}  Qe7 {[%clk 0:00:32]} 27. f4 {[%clk 0:00:20]}  Qe6 {[%clk 0:00:29]} 28. Rf1 {[%clk 0:00:12]}  Nf5 {[%clk 0:00:22]} 29. Nxf5 {[%clk 0:00:09]}  Qxf5 {[%clk 0:00:23]} 30. Qf3 {[%clk 0:00:08]}  Rad8 {[%clk 0:00:22]} 31. g4 {[%clk 0:00:08]}  Qe6 {[%clk 0:00:20]} 32. f5 {[%clk 0:00:08]}  Qd5 {[%clk 0:00:20]} 33. f6 {[%clk 0:00:08]}  Qd2 {[%clk 0:00:11]} 34. fxg7 {[%clk 0:00:06]}  Kxg7 {[%clk 0:00:04]} 35. Qf6+ {[%clk 0:00:06]}  Kg8 {[%clk 0:00:04]} 36. Ref4 {[%clk 0:00:06]}  Rde8 {[%clk 0:00:04]} 37. Qg5+ {[%clk 0:00:06]}  Kh8 {[%clk 0:00:03]} 38. Qf6+ {[%clk 0:00:06]}  Kg8 {[%clk 0:00:03]} 39. Rf5 {[%clk 0:00:02]}  Re6 {[%clk 0:00:00]} 40. Rg5+ {[%clk 0:00:02]} 1-0


[Site "https://www.chess.com"]

[Event "Titled Tuesday Blitz July 4 Late 2023"]
[White "Campos, Maria Jose"]
[Black "Guimaraes, Wagner Peixoto"]
[WhiteFideId "146803"]
[BlackFideId "2100940"]
[WhiteElo "2381"]
[BlackElo "2264"]
[Result "1/2-1/2"]
[Round "6"]
[TimeControl "180+2"]
[Date "2023.07.04"]
[WhiteClock "0:01:35"]
[BlackClock "0:00:28"]
[Board "131"]

1. c4 {[%clk 0:03:00]}  c5 {[%clk 0:02:54]} 2. g3 {[%clk 0:03:01]}  Nc6 {[%clk 0:02:48]} 3. Bg2 {[%clk 0:03:01]}  g6 {[%clk 0:02:49]} 4. Nc3 {[%clk 0:03:01]}  Bg7 {[%clk 0:02:49]} 5. Nf3 {[%clk 0:02:59]}  Nf6 {[%clk 0:02:49]} 6. d3 {[%clk 0:02:58]}  O-O {[%clk 0:02:44]} 7. a3 {[%clk 0:02:59]}  d5 {[%clk 0:02:43]} 8. cxd5 {[%clk 0:02:58]}  Nxd5 {[%clk 0:02:44]} 9. Bd2 {[%clk 0:02:59]}  Nc7 {[%clk 0:02:40]} 10. O-O {[%clk 0:02:59]}  b6 {[%clk 0:02:38]} 11. Qa4 {[%clk 0:02:58]}  Bd7 {[%clk 0:02:38]} 12. Rab1 {[%clk 0:02:54]}  Ne6 {[%clk 0:02:38]} 13. Qd1 {[%clk 0:02:53]}  Rc8 {[%clk 0:02:35]} 14. Be3 {[%clk 0:02:46]}  Ncd4 {[%clk 0:02:31]} 15. Nd2 {[%clk 0:02:45]}  Nf5 {[%clk 0:02:30]} 16. Nc4 {[%clk 0:02:43]}  b5 {[%clk 0:02:28]} 17. Nd2 {[%clk 0:02:41]}  Nxe3 {[%clk 0:02:26]} 18. fxe3 {[%clk 0:02:41]}  Bh6 {[%clk 0:02:25]} 19. e4 {[%clk 0:02:39]}  Nd4 {[%clk 0:02:19]} 20. Nf3 {[%clk 0:02:36]}  Bg4 {[%clk 0:02:11]} 21. Nd5 {[%clk 0:02:32]}  e6 {[%clk 0:02:02]} 22. Nf4 {[%clk 0:02:32]}  Bxf3 {[%clk 0:01:54]} 23. Bxf3 {[%clk 0:02:30]}  Bxf4 {[%clk 0:01:52]} 24. gxf4 {[%clk 0:02:30]}  Qh4 {[%clk 0:01:53]} 25. Qd2 {[%clk 0:02:27]}  Rfd8 {[%clk 0:01:45]} 26. Qe3 {[%clk 0:02:24]}  Nc2 {[%clk 0:01:37]} 27. Qf2 {[%clk 0:02:24]}  Qxf4 {[%clk 0:01:33]} 28. Bg2 {[%clk 0:02:15]}  Qxf2+ {[%clk 0:01:33]} 29. Kxf2 {[%clk 0:02:15]}  Nd4 {[%clk 0:01:30]} 30. Rfc1 {[%clk 0:02:14]}  e5 {[%clk 0:01:24]} 31. Rc3 {[%clk 0:02:10]}  Rd6 {[%clk 0:01:06]} 32. Rbc1 {[%clk 0:02:09]}  Rdc6 {[%clk 0:01:02]} 33. Bh3 {[%clk 0:02:08]}  R8c7 {[%clk 0:01:03]} 34. e3 {[%clk 0:02:05]}  Ne6 {[%clk 0:00:55]} 35. Bxe6 {[%clk 0:02:05]}  fxe6 {[%clk 0:00:54]} 36. d4 {[%clk 0:01:42]}  exd4 {[%clk 0:00:51]} 37. exd4 {[%clk 0:01:42]}  c4 {[%clk 0:00:51]} 38. Rf3 {[%clk 0:01:41]}  Rf7 {[%clk 0:00:50]} 39. Rxf7 {[%clk 0:01:40]}  Kxf7 {[%clk 0:00:51]} 40. Ke3 {[%clk 0:01:41]}  Ke7 {[%clk 0:00:52]} 41. Rf1 {[%clk 0:01:41]}  a5 {[%clk 0:00:51]} 42. d5 {[%clk 0:01:37]}  Rc8 {[%clk 0:00:45]} 43. Kd4 {[%clk 0:01:36]}  exd5 {[%clk 0:00:36]} 44. exd5 {[%clk 0:01:36]}  b4 {[%clk 0:00:36]} 45. axb4 {[%clk 0:01:35]}  axb4 {[%clk 0:00:36]} 46. Rf3 {[%clk 0:01:34]}  c3 {[%clk 0:00:22]} 47. bxc3 {[%clk 0:01:29]}  bxc3 {[%clk 0:00:22]} 48. Rxc3 {[%clk 0:01:29]}  Rxc3 {[%clk 0:00:22]} 49. Kxc3 {[%clk 0:01:29]}  Kd6 {[%clk 0:00:22]} 50. Kd4 {[%clk 0:01:30]}  g5 {[%clk 0:00:23]} 51. Ke4 {[%clk 0:01:30]}  h5 {[%clk 0:00:23]} 52. Kf5 {[%clk 0:01:30]}  Kxd5 {[%clk 0:00:24]} 53. Kxg5 {[%clk 0:01:31]}  Ke6 {[%clk 0:00:24]} 54. Kxh5 {[%clk 0:01:31]}  Kf7 {[%clk 0:00:24]} 55. Kh6 {[%clk 0:01:32]}  Kg8 {[%clk 0:00:25]} 56. Kg6 {[%clk 0:01:32]}  Kh8 {[%clk 0:00:25]} 57. h4 {[%clk 0:01:33]}  Kg8 {[%clk 0:00:26]} 58. h5 {[%clk 0:01:34]}  Kh8 {[%clk 0:00:26]} 59. h6 {[%clk 0:01:34]}  Kg8 {[%clk 0:00:27]} 60. h7+ {[%clk 0:01:34]}  Kh8 {[%clk 0:00:28]} 61. Kh6 {[%clk 0:01:35]} 1/2-1/2


[Site "https://www.chess.com"]

[Event "Titled Tuesday Blitz July 4 Late 2023"]
[White "Djordjevic, Dejan N"]
[Black "Palencia Morales, Wilson Guillermo"]
[WhiteFideId "913316"]
[BlackFideId "4401859"]
[WhiteElo "2170"]
[BlackElo "2532"]
[Result "0-1"]
[Round "6"]
[TimeControl "180+2"]
[Date "2023.07.04"]
[WhiteClock "0:01:09"]
[BlackClock "0:02:02"]
[Board "137"]

1. e4 {[%clk 0:03:00]}  c5 {[%clk 0:02:56]} 2. Nc3 {[%clk 0:03:00]}  Nc6 {[%clk 0:02:55]} 3. g3 {[%clk 0:03:00]}  g6 {[%clk 0:02:55]} 4. Bg2 {[%clk 0:03:01]}  Bg7 {[%clk 0:02:56]} 5. Nge2 {[%clk 0:03:02]}  d6 {[%clk 0:02:56]} 6. O-O {[%clk 0:03:02]}  e5 {[%clk 0:02:55]} 7. h3 {[%clk 0:03:03]}  Nge7 {[%clk 0:02:55]} 8. d3 {[%clk 0:03:03]}  O-O {[%clk 0:02:55]} 9. f4 {[%clk 0:03:04]}  Rb8 {[%clk 0:02:53]} 10. Be3 {[%clk 0:03:00]}  Nd4 {[%clk 0:02:53]} 11. g4 {[%clk 0:02:59]}  exf4 {[%clk 0:02:52]} 12. Nxf4 {[%clk 0:02:59]}  b5 {[%clk 0:02:44]} 13. Ncd5 {[%clk 0:02:57]}  Nxd5 {[%clk 0:02:42]} 14. Nxd5 {[%clk 0:02:56]}  Be6 {[%clk 0:02:42]} 15. c3 {[%clk 0:02:50]}  Nc6 {[%clk 0:02:41]} 16. Nf4 {[%clk 0:02:44]}  b4 {[%clk 0:02:37]} 17. Qd2 {[%clk 0:02:44]}  bxc3 {[%clk 0:02:36]} 18. bxc3 {[%clk 0:02:44]}  Qa5 {[%clk 0:02:37]} 19. Rfc1 {[%clk 0:02:37]}  Ne5 {[%clk 0:02:32]} 20. Rc2 {[%clk 0:02:29]}  Qa3 {[%clk 0:02:12]} 21. Rf1 {[%clk 0:02:20]}  Bd7 {[%clk 0:02:08]} 22. Nd5 {[%clk 0:02:17]}  Ba4 {[%clk 0:02:08]} 23. Rfc1 {[%clk 0:01:55]}  Bxc2 {[%clk 0:02:07]} 24. Rxc2 {[%clk 0:01:55]}  c4 {[%clk 0:02:06]} 25. d4 {[%clk 0:01:53]}  Nd3 {[%clk 0:02:06]} 26. Bf1 {[%clk 0:01:16]}  Rb1 {[%clk 0:02:03]} 27. Kg2 {[%clk 0:01:16]}  Ne1+ {[%clk 0:02:02]} 28. Kf2 {[%clk 0:01:09]}  Nxc2 {[%clk 0:02:02]} 0-1


[Site "https://www.chess.com"]

[Event "Titled Tuesday Blitz July 4 Late 2023"]
[White "Liu, Casper"]
[Black "Hartikainen, Jarmo"]
[WhiteFideId "1454153"]
[BlackFideId "503134"]
[WhiteElo "2473"]
[BlackElo "2163"]
[Result "1-0"]
[Round "6"]
[TimeControl "180+2"]
[Date "2023.07.04"]
[WhiteClock "0:01:29"]
[BlackClock "0:00:07"]
[Board "138"]

1. b4 {[%clk 0:03:00]}  g6 {[%clk 0:02:58]} 2. Bb2 {[%clk 0:03:01]}  Nf6 {[%clk 0:02:58]} 3. g4 {[%clk 0:03:00]}  h6 {[%clk 0:02:56]} 4. Nf3 {[%clk 0:02:57]}  Bg7 {[%clk 0:02:55]} 5. h4 {[%clk 0:02:55]}  d6 {[%clk 0:02:54]} 6. Bh3 {[%clk 0:02:54]}  e5 {[%clk 0:02:51]} 7. Rg1 {[%clk 0:02:49]}  c6 {[%clk 0:02:32]} 8. d4 {[%clk 0:02:49]}  e4 {[%clk 0:02:25]} 9. Nfd2 {[%clk 0:02:49]}  d5 {[%clk 0:02:25]} 10. c4 {[%clk 0:02:43]}  Be6 {[%clk 0:02:24]} 11. Nc3 {[%clk 0:02:36]}  Qd7 {[%clk 0:02:23]} 12. cxd5 {[%clk 0:02:31]}  cxd5 {[%clk 0:02:23]} 13. Rc1 {[%clk 0:02:29]}  Nc6 {[%clk 0:02:09]} 14. Nb3 {[%clk 0:02:22]}  b6 {[%clk 0:01:55]} 15. a3 {[%clk 0:02:17]}  Rd8 {[%clk 0:01:50]} 16. e3 {[%clk 0:02:14]}  h5 {[%clk 0:01:43]} 17. Qc2 {[%clk 0:02:04]}  hxg4 {[%clk 0:01:20]} 18. Bf1 {[%clk 0:02:05]}  O-O {[%clk 0:01:00]} 19. Bb5 {[%clk 0:02:03]}  Rc8 {[%clk 0:00:25]} 20. Ne2 {[%clk 0:01:58]}  Qd6 {[%clk 0:00:15]} 21. Bxc6 {[%clk 0:01:59]}  Bd7 {[%clk 0:00:15]} 22. b5 {[%clk 0:01:59]}  Nh5 {[%clk 0:00:14]} 23. a4 {[%clk 0:01:59]}  f5 {[%clk 0:00:14]} 24. Qd2 {[%clk 0:01:54]}  f4 {[%clk 0:00:15]} 25. exf4 {[%clk 0:01:52]}  Nxf4 {[%clk 0:00:14]} 26. Nxf4 {[%clk 0:01:52]}  Rxf4 {[%clk 0:00:14]} 27. Bc3 {[%clk 0:01:53]}  e3 {[%clk 0:00:14]} 28. fxe3 {[%clk 0:01:52]}  Re4 {[%clk 0:00:14]} 29. Bb4 {[%clk 0:01:51]}  Qe6 {[%clk 0:00:13]} 30. Rg3 {[%clk 0:01:51]}  Re8 {[%clk 0:00:13]} 31. Bxd7 {[%clk 0:01:48]}  Qxd7 {[%clk 0:00:13]} 32. Kd1 {[%clk 0:01:47]}  Bh6 {[%clk 0:00:13]} 33. Rc3 {[%clk 0:01:46]}  Qe7 {[%clk 0:00:12]} 34. Bxe7 {[%clk 0:01:46]}  R8xe7 {[%clk 0:00:11]} 35. Rc6 {[%clk 0:01:46]}  Bxe3 {[%clk 0:00:10]} 36. Qb4 {[%clk 0:01:33]}  Bxd4 {[%clk 0:00:09]} 37. Rxg6+ {[%clk 0:01:33]}  Kh7 {[%clk 0:00:09]} 38. R6xg4 {[%clk 0:01:28]}  Re1+ {[%clk 0:00:08]} 39. Qxe1 {[%clk 0:01:28]}  Rxe1+ {[%clk 0:00:08]} 40. Kxe1 {[%clk 0:01:29]}  Bc3+ {[%clk 0:00:08]} 41. Rxc3 {[%clk 0:01:29]}  d4 {[%clk 0:00:07]} 42. Rc7+ {[%clk 0:01:29]} 1-0


[Site "https://www.chess.com"]

[Event "Titled Tuesday Blitz July 4 Late 2023"]
[White "Urbina Perez, Juan Antonio"]
[Black "Torres Dominguez, David"]
[WhiteFideId "2217368"]
[BlackFideId "2220857"]
[WhiteElo "2391"]
[BlackElo "2151"]
[Result "1-0"]
[Round "6"]
[TimeControl "180+2"]
[Date "2023.07.04"]
[WhiteClock "0:01:21"]
[BlackClock "0:00:00"]
[Board "140"]

1. e4 {[%clk 0:03:00]}  e5 {[%clk 0:03:00]} 2. Nf3 {[%clk 0:02:59]}  Nc6 {[%clk 0:03:01]} 3. Bb5 {[%clk 0:03:00]}  Nge7 {[%clk 0:03:00]} 4. O-O {[%clk 0:02:58]}  g6 {[%clk 0:03:00]} 5. c3 {[%clk 0:02:53]}  Bg7 {[%clk 0:02:59]} 6. d4 {[%clk 0:02:52]}  O-O {[%clk 0:02:59]} 7. d5 {[%clk 0:02:50]}  a6 {[%clk 0:02:58]} 8. Bd3 {[%clk 0:02:46]}  Na7 {[%clk 0:02:57]} 9. d6 {[%clk 0:02:43]}  cxd6 {[%clk 0:02:57]} 10. Bc4 {[%clk 0:02:44]}  d5 {[%clk 0:02:53]} 11. Bxd5 {[%clk 0:02:37]}  Nxd5 {[%clk 0:02:52]} 12. Qxd5 {[%clk 0:02:38]}  d6 {[%clk 0:02:28]} 13. Rd1 {[%clk 0:02:37]}  Be6 {[%clk 0:02:28]} 14. Qxd6 {[%clk 0:02:30]}  Qxd6 {[%clk 0:02:27]} 15. Rxd6 {[%clk 0:02:31]}  Rfd8 {[%clk 0:02:24]} 16. Rxd8+ {[%clk 0:02:30]}  Rxd8 {[%clk 0:02:23]} 17. Nbd2 {[%clk 0:02:31]}  f5 {[%clk 0:02:00]} 18. Kf1 {[%clk 0:02:28]}  fxe4 {[%clk 0:01:53]} 19. Nxe4 {[%clk 0:02:26]}  Bc4+ {[%clk 0:01:53]} 20. Ke1 {[%clk 0:02:24]}  Nb5 {[%clk 0:01:35]} 21. Be3 {[%clk 0:02:17]}  h6 {[%clk 0:01:18]} 22. Nfd2 {[%clk 0:02:08]}  Bd5 {[%clk 0:01:13]} 23. f3 {[%clk 0:02:02]}  Nd6 {[%clk 0:01:08]} 24. Nc5 {[%clk 0:01:47]}  Nf5 {[%clk 0:01:06]} 25. Bf2 {[%clk 0:01:42]}  Rc8 {[%clk 0:00:54]} 26. Nce4 {[%clk 0:01:38]}  Bc6 {[%clk 0:00:48]} 27. Rd1 {[%clk 0:01:35]}  Rd8 {[%clk 0:00:40]} 28. Nc4 {[%clk 0:01:32]}  Rxd1+ {[%clk 0:00:35]} 29. Kxd1 {[%clk 0:01:33]}  b5 {[%clk 0:00:31]} 30. Ne3 {[%clk 0:01:25]}  Nxe3+ {[%clk 0:00:23]} 31. Bxe3 {[%clk 0:01:26]}  Bd5 {[%clk 0:00:23]} 32. b3 {[%clk 0:01:25]}  Kf7 {[%clk 0:00:20]} 33. Kd2 {[%clk 0:01:25]}  Bf8 {[%clk 0:00:14]} 34. Kd3 {[%clk 0:01:21]}  Be7 {[%clk 0:00:00]} 35. c4 {[%clk 0:01:21]} 1-0


[Site "https://www.chess.com"]

[Event "Titled Tuesday Blitz July 4 Late 2023"]
[White "campochess"]
[Black "Arnold, Ken"]
[BlackFideId "2056836"]
[WhiteElo "2130"]
[BlackElo "2388"]
[Result "0-1"]
[Round "6"]
[TimeControl "180+2"]
[Date "2023.07.04"]
[WhiteClock "0:00:03"]
[BlackClock "0:00:16"]
[Board "141"]

1. Nf3 {[%clk 0:02:59]}  d5 {[%clk 0:02:59]} 2. c4 {[%clk 0:02:58]}  e6 {[%clk 0:02:59]} 3. d4 {[%clk 0:02:58]}  Nf6 {[%clk 0:02:59]} 4. Nc3 {[%clk 0:02:58]}  Be7 {[%clk 0:02:59]} 5. g3 {[%clk 0:02:57]}  c6 {[%clk 0:02:59]} 6. b3 {[%clk 0:02:56]}  O-O {[%clk 0:02:59]} 7. Bg2 {[%clk 0:02:56]}  b6 {[%clk 0:03:00]} 8. O-O {[%clk 0:02:56]}  Bb7 {[%clk 0:03:00]} 9. Re1 {[%clk 0:02:55]}  Nbd7 {[%clk 0:03:00]} 10. Bf4 {[%clk 0:02:55]}  c5 {[%clk 0:02:59]} 11. Ne5 {[%clk 0:02:53]}  Nxe5 {[%clk 0:02:54]} 12. dxe5 {[%clk 0:02:48]}  Ne4 {[%clk 0:02:39]} 13. Nxe4 {[%clk 0:02:33]}  dxe4 {[%clk 0:02:39]} 14. Qc2 {[%clk 0:02:33]}  g5 {[%clk 0:02:35]} 15. Rad1 {[%clk 0:02:27]}  Qc7 {[%clk 0:02:33]} 16. Bc1 {[%clk 0:02:21]}  Qc6 {[%clk 0:02:21]} 17. f3 {[%clk 0:02:14]}  Rad8 {[%clk 0:02:18]} 18. fxe4 {[%clk 0:02:13]}  Rxd1 {[%clk 0:02:14]} 19. Rxd1 {[%clk 0:02:10]}  Rd8 {[%clk 0:02:12]} 20. Rd3 {[%clk 0:02:03]}  Rxd3 {[%clk 0:02:09]} 21. exd3 {[%clk 0:02:02]}  Qc7 {[%clk 0:02:08]} 22. Bb2 {[%clk 0:02:02]}  Qd8 {[%clk 0:01:57]} 23. Bf1 {[%clk 0:01:56]}  h6 {[%clk 0:01:53]} 24. Qe2 {[%clk 0:01:55]}  Bf8 {[%clk 0:01:51]} 25. Qg4 {[%clk 0:01:53]}  Bg7 {[%clk 0:01:51]} 26. h4 {[%clk 0:01:53]}  gxh4 {[%clk 0:01:39]} 27. gxh4 {[%clk 0:01:52]}  Bc6 {[%clk 0:01:34]} 28. Kh1 {[%clk 0:01:34]}  Kh7 {[%clk 0:01:28]} 29. h5 {[%clk 0:01:31]}  Qg5 {[%clk 0:01:24]} 30. Be2 {[%clk 0:01:23]}  Qd2 {[%clk 0:01:18]} 31. Ba3 {[%clk 0:01:06]}  Bxe5 {[%clk 0:01:14]} 32. Qf3 {[%clk 0:01:03]}  Be8 {[%clk 0:00:52]} 33. d4 {[%clk 0:00:30]}  Bxd4 {[%clk 0:00:42]} 34. Qf1 {[%clk 0:00:20]}  Qg5 {[%clk 0:00:33]} 35. Bc1 {[%clk 0:00:19]}  Qh4+ {[%clk 0:00:33]} 36. Kg2 {[%clk 0:00:19]}  Be5 {[%clk 0:00:29]} 37. Qf3 {[%clk 0:00:18]}  Qh2+ {[%clk 0:00:25]} 38. Kf1 {[%clk 0:00:18]}  f6 {[%clk 0:00:21]} 39. Qe3 {[%clk 0:00:17]}  Qh1+ {[%clk 0:00:16]} 40. Kf2 {[%clk 0:00:17]}  Qh4+ {[%clk 0:00:16]} 41. Kf1 {[%clk 0:00:17]}  Qg5 {[%clk 0:00:16]} 42. Qxg5 {[%clk 0:00:14]}  hxg5 {[%clk 0:00:17]} 43. Kf2 {[%clk 0:00:14]}  Kh6 {[%clk 0:00:17]} 44. Kf3 {[%clk 0:00:14]}  Bxh5+ {[%clk 0:00:17]} 45. Ke3 {[%clk 0:00:14]}  Bxe2 {[%clk 0:00:18]} 46. Kxe2 {[%clk 0:00:14]}  Kg6 {[%clk 0:00:19]} 47. Kf3 {[%clk 0:00:14]}  f5 {[%clk 0:00:19]} 48. Bd2 {[%clk 0:00:14]}  g4+ {[%clk 0:00:19]} 49. Ke3 {[%clk 0:00:14]}  f4+ {[%clk 0:00:19]} 50. Ke2 {[%clk 0:00:13]}  Kg5 {[%clk 0:00:19]} 51. b4 {[%clk 0:00:13]}  Bd4 {[%clk 0:00:19]} 52. b5 {[%clk 0:00:12]}  e5 {[%clk 0:00:19]} 53. a4 {[%clk 0:00:11]}  Kh4 {[%clk 0:00:18]} 54. a5 {[%clk 0:00:11]}  f3+ {[%clk 0:00:18]} 55. Kd3 {[%clk 0:00:10]}  g3 {[%clk 0:00:18]} 56. axb6 {[%clk 0:00:10]}  axb6 {[%clk 0:00:18]} 57. Ba5 {[%clk 0:00:09]}  f2 {[%clk 0:00:17]} 58. Ke2 {[%clk 0:00:08]}  g2 {[%clk 0:00:17]} 59. Bxb6 {[%clk 0:00:07]}  f1=Q+ {[%clk 0:00:17]} 60. Kd2 {[%clk 0:00:03]}  g1=Q {[%clk 0:00:16]} 0-1


[Site "https://www.chess.com"]